{"text_format":"1","workbook":"xlsx","n_sheets":7,"sheets":["Tabeller","Trend Midlertidig Stengt","Trend Kolonnekjøring","Søyle MS","Søyle KK","Søyle MS alle","Søyle KK alle"],"not_rendered":{"charts":6,"images":0,"macros":1,"external_links":0,"defined_names":4,"comments":0,"pivot_tables":0},"unopened":[],"bounds":{"document_bytes":16777216,"sheet_cells":100000,"rows_first":2000,"rows_last":500,"rows_between":2000,"halvings":0,"cell_chars":16384,"cell_head_chars":4096},"cells_cut":0,"cells_raw":0,"read":"whole","date_system":"1900"}

{"sheet":"Tabeller","index":0,"n_rows":77,"n_cols":47,"rows_kept":77,"cut":false,"hidden":false,"merged":[[42,34,43,35],[7,27,7,28],[7,15,7,16],[7,25,7,26],[7,17,7,18],[7,19,7,20],[7,21,7,22],[7,23,7,24],[3,1,3,8],[4,1,4,12],[5,1,5,12],[6,34,8,35],[4,34,5,35],[7,13,7,14],[7,3,7,4],[7,5,7,6],[7,7,7,8],[7,9,7,10],[7,11,7,12]]}
[null,null,"Tabeller"]
[]
[]
[null,"Statistikk Fjelloverganger i Nord-Norge"]
[null,"Antall ganger midlertidig stengt og kolonnekjøringer i vintersesongen (1. oktober - 15. mai)",null,null,null,null,null,null,null,null,null,null,null,null,null,null,null,null,null,null,null,null,null,null,null,null,"Oppdatert 01.04.2020 av Roar F Hanssen, VTS",null,"Ant.Vintre",null,null,null,null,null,"Midlertidig stengt"]
[null,"Statistikken er tatt ut ved hjelp av Vegloggens statistikkmodul. Vegloggen er det loggføringsverktøyet som brukes på Vegtrafikksentralene.",null,null,null,null,null,null,null,null,null,null,null,null,null,null,null,null,null,null,null,null,null,null,null,null,"Oppdatert til og med 31. mars 2020",null,11]
[null,null,null,null,null,null,null,null,null,null,null,null,null,null,null,null,null,null,null,null,null,null,null,null,null,null,null,null,null,null,null,null,null,null,2,null,3,5,7,9,11,13,15,17,19,21,23]
[null,null,null,"2009 / 2010",null,"2010 / 2011",null,"2011 / 2012",null,"2012 / 2013",null,"2013 / 2014",null,"2014 / 2015",null,"2015 / 2016",null,"2016 / 2017",null,"2017 / 2018",null,"2018/2019",null,"2019/2020",null,"SUM",null,"SNITT",null,null,null,null,null,null,null,null,"2009 / 2010","2010 / 2011","2011 / 2012","2012 / 2013","2013 / 2014","2014 / 2015","2015 / 2016","2016 / 2017","2017 / 2018","2018 / 2019","2019/2020"]
[null,"Nr","Fjellovergang/strekning","MS","KK","MS","KK","MS","KK","MS","KK","MS","KK","MS","KK","MS","KK","MS","KK","MS","KK","MS","KK","MS","KK","MS","KK","MS","KK",null,null,null,null,null,null,null,"MS","MS","MS","MS","MS","MS","MS","MS","MS","MS","MS"]
[null,1,"E6 Burfjord - Alta",9,0,11,0,21,0,22,0,23,0,53,0,33,0,7,0,13,0,9,0,19,0,{"$f":"SUM(T10,R10,P10,N10,L10,J10,H10,F10,D10,V10,X10)","v":220},{"$f":"SUM(U10,S10,Q10,O10,M10,K10,I10,G10,E10,W10,Y10)","v":0},{"$f":"Z10/AD10","v":20},{"$f":"AA10/AD10","v":0},{"$f":"COUNT(D10:Y10)/2","v":11},null,null,null,null,{"$f":"B10","v":1},{"$f":"VLOOKUP($AI10,Hovedtabell,AI$7,FALSE)","v":"E6 Burfjord - Alta"},{"$f":"VLOOKUP($AI10,Hovedtabell,AK$7,FALSE)","v":9},11,21,22,23,53,33,7,13,9,19]
[null,2,"E6 Hatter",3,2,12,10,3,2,9,10,13,10,17,10,8,6,19,19,5,4,13,9,28,21,{"$f":"SUM(T11,R11,P11,N11,L11,J11,H11,F11,D11,V11,X11)","v":130},{"$f":"SUM(U11,S11,Q11,O11,M11,K11,I11,G11,E11,W11,Y11)","v":103},{"$f":"Z11/AD11","v":11.818181818181818},{"$f":"AA11/AD11","v":9.3636363636363633},{"$f":"COUNT(D11:Y11)/2","v":11},null,null,null,null,{"$f":"B11","v":2},"E6 Hatter",3,12,3,9,13,17,8,19,5,13,28]
[null,3,"E6 Kråkmofjellet",5,0,10,0,3,0,8,0,11,1,32,0,3,0,11,0,6,0,5,0,9,2,103,3,9.3636363636363633,0.27272727272727271,11,null,null,null,null,3,"E6 Kråkmofjellet",5,10,3,8,11,32,3,11,6,5,9]
[null,4,"E6 Kvænangsfjellet",16,4,30,8,8,1,35,18,44,16,21,11,23,10,30,19,33,24,36,19,77,44,353,174,32.090909090909093,15.818181818181818,11,null,null,null,null,4,"E6 Kvænangsfjellet",16,30,8,35,44,21,23,30,33,36,77]
[null,5,"E6 Saltfjellet",9,6,31,28,29,30,10,7,46,38,31,31,19,17,49,44,12,11,39,17,76,65,351,294,31.90909090909091,26.727272727272727,11,null,null,null,null,5,"E6 Saltfjellet",9,31,29,10,46,31,19,49,12,39,76]
[null,6,"E6 Sennalandet",11,4,41,34,15,19,38,31,39,37,33,20,17,13,55,57,28,26,21,8,48,86,346,335,{"$f":"Z15/AD15","v":31.454545454545453},30.454545454545453,11,null,null,null,null,6,"E6 Sennalandet",11,41,15,38,39,33,17,55,28,21,48]
[null,7,"E6 Ulvsvågskaret",6,0,28,4,17,0,27,0,15,0,20,0,13,0,7,0,6,0,13,0,6,0,158,4,14.363636363636363,0.36363636363636365,11,null,null,null,null,7,"E6 Ulvsvågskaret",6,28,17,27,15,20,13,7,6,13,6]
[null,8,"E10 Bjørnfjell",8,11,35,30,13,8,38,21,55,43,40,18,28,18,59,28,22,8,47,41,59,53,404,279,36.727272727272727,25.363636363636363,11,null,null,null,null,8,"E10 Bjørnfjell",8,35,13,38,55,40,28,59,22,47,59]
[null,9,"E12 Umbukta",3,1,11,2,13,16,22,3,41,19,14,8,8,2,10,4,6,3,5,4,22,15,155,77,14.090909090909092,7,11,null,null,null,null,9,"E12 Umbukta",3,11,13,22,41,14,8,10,6,5,22]
[null,10,"E69 Hønsa - Repvåg",21,12,33,16,11,5,41,3,29,3,28,12,33,10,49,20,50,3,42,15,64,54,401,153,36.454545454545453,13.909090909090908,11,null,null,null,null,10,"E69 Hønsa - Repvåg",21,33,11,41,29,28,33,49,50,42,64]
[null,11,"E69 Nordkapptunnelen - Honningsvåg",7,0,15,1,7,1,29,1,19,0,23,3,19,1,12,0,31,3,17,1,27,6,206,17,{"$f":"Z20/AD20","v":18.727272727272727},{"$f":"AA20/AD20","v":1.5454545454545454},11,null,null,null,null,11,"E69 Nordkapptunnelen - Honningsvåg",7,15,7,29,19,23,19,12,31,17,27]
[null,12,"E69 Olderfjord - Honningsvåg",44,22,73,33,22,10,91,7,63,7,62,24,81,24,72,30,107,15,62,17,95,67,772,256,70.181818181818187,23.272727272727273,11,null,null,null,null,12,"E69 Olderfjord - Honningsvåg",44,73,22,91,63,62,81,72,107,62,95]
[null,13,"E69 Olderfjord - Hønsa",0,0,3,0,1,0,2,0,3,0,1,0,1,0,4,0,5,0,1,0,6,0,27,0,{"$f":"Z22/AD22","v":2.4545454545454546},{"$f":"AA22/AD22","v":0},11,null,null,null,null,13,"E69 Olderfjord - Hønsa",0,3,1,2,3,1,1,4,5,1,6]
[null,14,"E69 Repvåg - Nordkapptunnelen",18,10,32,16,13,6,35,5,27,5,26,14,36,13,48,26,51,15,35,17,56,65,377,192,34.272727272727273,17.454545454545453,11,null,null,null,null,14,"E69 Repvåg - Nordkapptunnelen",18,32,13,35,27,26,36,48,51,35,56]
[null,15,"E69 Skarsvåg - Nordkapp",9,5,18,7,23,19,21,22,13,24,16,20,8,11,39,36,26,40,25,31,48,38,246,253,22.363636363636363,23,11,null,null,null,null,15,"E69 Skarsvåg - Nordkapp",{"$f":"VLOOKUP($AI24,Hovedtabell,AK$7,FALSE)","v":9},18,23,21,13,16,8,39,26,25,48]
[null,16,"E69 Skipsfjordhøgda - Skarsvåg",6,19,22,52,7,12,27,31,32,23,22,27,16,7,30,12,34,10,25,20,52,48,273,261,24.818181818181817,23.727272727272727,11,null,null,null,null,16,"E69 Skipsfjordhøgda - Skarsvåg",6,22,7,27,32,22,16,30,34,25,52]
[null,17,"Rv 73 Krutfjellet",1,0,4,0,4,2,1,0,4,0,4,1,5,0,2,4,4,1,3,2,7,1,39,11,3.5454545454545454,1,11,null,null,null,null,17,"Rv 73 Krutfjellet",1,4,4,1,4,4,5,2,4,3,7]
[null,18,"Rv 77 Graddis",6,0,6,0,6,0,8,0,8,0,2,1,10,0,15,0,8,0,5,0,7,1,81,2,7.3636363636363633,0.18181818181818182,11,null,null,null,null,18,"Rv 77 Graddis",6,6,6,8,8,2,10,15,8,5,7]
[null,19,"Rv 92 Kautokeino - Karasjok",0,0,0,0,2,0,5,0,6,0,2,0,4,1,8,0,1,0,10,0,3,0,41,1,3.7272727272727271,9.0909090909090912E-2,11,null,null,null,null,19,"Rv 92 Kautokeino - Karasjok",0,0,2,5,6,2,4,8,1,10,3]
[null,20,"E45 Kautokeino - Alta",4,0,17,0,2,0,7,0,13,0,4,0,7,1,16,2,3,0,16,0,12,0,101,3,9.1818181818181817,0.27272727272727271,11,null,null,null,null,20,"E45 Kautokeino - Alta",4,17,2,7,13,4,7,16,3,16,12]
[null,21,"Rv 94 Kvalsund - Hammerfest",8,3,25,13,7,4,18,6,14,6,23,3,29,6,23,4,10,1,24,3,30,16,211,65,19.181818181818183,5.9090909090909092,11,null,null,null,null,21,"Rv 94 Kvalsund - Hammerfest",8,25,7,18,14,23,29,23,10,24,30]
[null,22,"Fv 8038 Gjesværkrysset - Gjesvær",9,16,20,52,8,11,26,31,30,22,18,29,16,7,32,14,28,10,18,18,53,42,258,252,23.454545454545453,22.90909090909091,11,null,null,null,null,22,"Fv 8038 Gjesværkrysset - Gjesvær",9,20,8,26,30,18,16,32,28,18,53]
[null,23,"Fv 889 Smørfjord - Havøysund"," - "," - ",34,54,12,6,37,38,31,39,34,26,36,44,53,40,37,33,41,41,68,58,383,379,38.299999999999997,37.9,10,null,null,null,null,23,"Fv 889 Smørfjord - Havøysund"," - ",34,12,37,31,34,36,53,37,41,68]
[null,24,"Fv 891 Båtsfjordfjellet"," - "," - ",27,75,6,44,17,75,38,61,41,69,33,30,65,50,34,41,19,31,35,63,315,539,{"$f":"Z33/AD33","v":31.5},{"$f":"AA33/AD33","v":53.9},10,null,null,null,null,{"$f":"B33","v":24},{"$f":"VLOOKUP($AI33,Hovedtabell,AI$7,FALSE)","v":"Fv 891 Båtsfjordfjellet"}," - ",27,6,17,38,41,33,65,34,19,35]
[null,25,"E75 Domen (Kiberg-Vardø)",8,1,12,13,0,0,8,6,7,6,7,0,2,0,11,4,14,8,8,2,30,29,107,69,9.7272727272727266,6.2727272727272725,11,null,null,null,null,25,"E75 Domen (Kiberg-Vardø)",8,12,0,8,7,7,2,11,14,8,30]
[null,26,"Fv 888 Nordkynvegen (Ifjord - Mehamn)"," - "," - ",66,137,35,48,44,65,47,62,31,43,69,66,89,117,54,71,64,74,103,137,602,820,60.2,82,10,null,null,null,null,26,"Fv 888 Nordkynvegen (Ifjord - Mehamn)"," - ",66,35,44,47,31,69,89,54,64,103]
[null,27,"Fv 98 Ifjordfjellet"," - "," - ",44,110,29,54,19,57,21,49,12,25,21,37,23,56,25,39,17,39,28,70,239,536,{"$f":"Z36/AD36","v":23.9},{"$f":"AA36/AD36","v":53.6},10,null,null,null,null,27,"Fv 98 Ifjordfjellet"," - ",44,29,19,21,12,21,23,25,17,28]
[null,28,"Fv 890 Kongsfjordfjellet"," - "," - ",25,75,6,44,18,73,40,57,37,53,25,18,56,29,27,27,17,23,37,61,288,460,28.8,46,10,null,null,null,null,{"$f":"B37","v":28},{"$f":"VLOOKUP($AI37,Hovedtabell,AI$7,FALSE)","v":"Fv 890 Kongsfjordfjellet"}," - ",25,6,18,40,37,25,56,27,17,37]
[null,29,"Fv 98 Børselvfjellet (Børselv - Kunes)"," - "," - ",4,1,1,0,5,3,5,0,4,1,7,0,15,11,9,0,8,0,27,12,85,28,{"$f":"Z38/AD38","v":8.5},{"$f":"AA38/AD38","v":2.8},10,null,null,null,null,29,"Fv 98 Børselvfjellet (Børselv - Kunes)"," - ",4,1,5,5,4,7,15,9,8,27]
[null,30,"Fv 813 Beiarfjellet (Misvær - Storjord)"," - "," - ",9,17,5,8,6,2,9,13,8,16,2,6,12,19,7,6,5,10,20,35,{"$f":"SUM(T39,R39,P39,N39,L39,J39,H39,F39,D39,V39,X39)","v":83},{"$f":"SUM(U39,S39,Q39,O39,M39,K39,I39,G39,E39,W39,Y39)","v":132},{"$f":"Z39/AD39","v":8.3000000000000007},{"$f":"AA39/AD39","v":13.2},10,null,null,null,null,{"$f":"B39","v":30},{"$f":"VLOOKUP($AI39,Hovedtabell,AI$7,FALSE)","v":"Fv 813 Beiarfjellet (Misvær - Storjord)"}," - ",9,5,6,9,8,2,12,7,5,20]
[]
[]
[]
[null,null,null,null,null,null,null,null,null,null,null,null,null,null,null,null,null,null,null,null,null,null,null,null,null,null,null,null,null,null,null,null,null,null,"Kolonnekjøring"]
[]
[null,null,null,null,null,null,null,null,null,null,null,null,null,null,null,null,null,null,null,null,null,null,null,null,null,null,null,null,null,null,null,null,null,null,null,2,4,6,8,10,12,14,16,18,20,22,24]
[null,null,null,null,null,null,null,null,null,null,null,null,null,null,null,null,null,null,null,null,null,null,null,null,null,null,null,null,null,null,null,null,null,null,null,null,"2009 / 2010","2010 / 2011","2011 / 2012","2012 / 2013","2013 / 2014","2014 / 2015","2015 / 2016","2016 / 2017","2017 / 2018","2018 / 2019","2019/2020"]
[null,null,null,null,null,null,null,null,null,null,null,null,null,null,null,null,null,null,null,null,null,null,null,null,null,null,null,null,null,null,null,null,null,null,null,null,"KK","KK","KK","KK","KK","KK","KK","KK","KK","KK","KK"]
[null,null,null,null,null,null,null,null,null,null,null,null,null,null,null,null,null,null,null,null,null,null,null,null,null,null,null,null,null,null,null,null,null,null,1,{"$f":"VLOOKUP($AI48,Hovedtabell,AJ$45,FALSE)","v":"E6 Burfjord - Alta"},0,0,0,0,0,0,0,0,0,0,0]
[null,null,null,null,null,null,null,null,null,null,null,null,null,null,null,null,null,null,null,null,null,null,null,null,null,null,null,null,null,null,null,null,null,null,2,"E6 Hatter",2,10,2,10,10,10,6,19,4,9,21]
[null,null,null,null,null,null,null,null,null,null,null,null,null,null,null,null,null,null,null,null,null,null,null,null,null,null,null,null,null,null,null,null,null,null,3,"E6 Kråkmofjellet",0,0,0,0,1,0,0,0,0,0,2]
[null,null,null,null,null,null,null,null,null,null,null,null,null,null,null,null,null,null,null,null,null,null,null,null,null,null,null,null,null,null,null,null,null,null,4,"E6 Kvænangsfjellet",4,8,1,18,16,11,10,19,24,19,44]
[null,null,null,null,null,null,null,null,null,null,null,null,null,null,null,null,null,null,null,null,null,null,null,null,null,null,null,null,null,null,null,null,null,null,5,"E6 Saltfjellet",6,28,30,7,38,31,17,44,11,17,65]
[null,null,null,null,null,null,null,null,null,null,null,null,null,null,null,null,null,null,null,null,null,null,null,null,null,null,null,null,null,null,null,null,null,null,6,"E6 Sennalandet",4,34,19,31,37,20,13,57,26,8,86]
[null,null,null,null,null,null,null,null,null,null,null,null,null,null,null,null,null,null,null,null,null,null,null,null,null,null,null,null,null,null,null,null,null,null,7,"E6 Ulvsvågskaret",0,4,0,0,0,0,0,0,0,0,0]
[null,null,null,null,null,null,null,null,null,null,null,null,null,null,null,null,null,null,null,null,null,null,null,null,null,null,null,null,null,null,null,null,null,null,8,"E10 Bjørnfjell",11,30,8,21,43,18,18,28,8,41,53]
[null,null,null,null,null,null,null,null,null,null,null,null,null,null,null,null,null,null,null,null,null,null,null,null,null,null,null,null,null,null,null,null,null,null,9,"E12 Umbukta",1,2,16,3,19,8,2,4,3,4,15]
[null,null,null,null,null,null,null,null,null,null,null,null,null,null,null,null,null,null,null,null,null,null,null,null,null,null,null,null,null,null,null,null,null,null,10,"E69 Hønsa - Repvåg",12,16,5,3,3,12,10,20,3,15,54]
[null,null,null,null,null,null,null,null,null,null,null,null,null,null,null,null,null,null,null,null,null,null,null,null,null,null,null,null,null,null,null,null,null,null,11,{"$f":"VLOOKUP($AI58,Hovedtabell,AJ$45,FALSE)","v":"E69 Nordkapptunnelen - Honningsvåg"},0,1,1,1,0,3,1,0,3,1,6]
[null,null,null,null,null,null,null,null,null,null,null,null,null,null,null,null,null,null,null,null,null,null,null,null,null,null,null,null,null,null,null,null,null,null,12,"E69 Olderfjord - Honningsvåg",22,33,10,7,7,24,24,30,15,17,67]
[null,null,null,null,null,null,null,null,null,null,null,null,null,null,null,null,null,null,null,null,null,null,null,null,null,null,null,null,null,null,null,null,null,null,13,"E69 Olderfjord - Hønsa",0,0,0,0,0,0,0,0,0,0,0]
[null,null,null,null,null,null,null,null,null,null,null,null,null,null,null,null,null,null,null,null,null,null,null,null,null,null,null,null,null,null,null,null,null,null,14,"E69 Repvåg - Nordkapptunnelen",10,16,6,5,5,14,13,26,15,17,65]
[null,null,null,null,null,null,null,null,null,null,null,null,null,null,null,null,null,null,null,null,null,null,null,null,null,null,null,null,null,null,null,null,null,null,15,"E69 Skarsvåg - Nordkapp",5,7,19,22,24,20,11,36,40,31,38]
[null,null,null,null,null,null,null,null,null,null,null,null,null,null,null,null,null,null,null,null,null,null,null,null,null,null,null,null,null,null,null,null,null,null,16,"E69 Skipsfjordhøgda - Skarsvåg",19,52,12,31,23,27,7,12,10,20,48]
[null,null,null,null,null,null,null,null,null,null,null,null,null,null,null,null,null,null,null,null,null,null,null,null,null,null,null,null,null,null,null,null,null,null,17,"Rv 73 Krutfjellet",0,0,2,0,0,1,0,4,1,2,1]
[null,null,null,null,null,null,null,null,null,null,null,null,null,null,null,null,null,null,null,null,null,null,null,null,null,null,null,null,null,null,null,null,null,null,18,"Rv 77 Graddis",0,0,0,0,0,1,0,0,0,0,1]
[null,null,null,null,null,null,null,null,null,null,null,null,null,null,null,null,null,null,null,null,null,null,null,null,null,null,null,null,null,null,null,null,null,null,19,"Rv 92 Kautokeino - Karasjok",0,0,0,0,0,0,1,0,0,0,0]
[null,null,null,null,null,null,null,null,null,null,null,null,null,null,null,null,null,null,null,null,null,null,null,null,null,null,null,null,null,null,null,null,null,null,20,"E45 Kautokeino - Alta",0,0,0,0,0,0,1,2,0,0,0]
[null,null,null,null,null,null,null,null,null,null,null,null,null,null,null,null,null,null,null,null,null,null,null,null,null,null,null,null,null,null,null,null,null,null,21,"Rv 94 Kvalsund - Hammerfest",3,13,4,6,6,3,6,4,1,3,16]
[null,null,null,null,null,null,null,null,null,null,null,null,null,null,null,null,null,null,null,null,null,null,null,null,null,null,null,null,null,null,null,null,null,null,22,"Fv 8038 Gjesværkrysset - Gjesvær",16,52,11,31,22,29,7,14,10,18,42]
[null,null,null,null,null,null,null,null,null,null,null,null,null,null,null,null,null,null,null,null,null,null,null,null,null,null,null,null,null,null,null,null,null,null,23,"Fv 889 Smørfjord - Havøysund"," - ",54,6,38,39,26,44,40,33,41,58]
[null,null,null,null,null,null,null,null,null,null,null,null,null,null,null,null,null,null,null,null,null,null,null,null,null,null,null,null,null,null,null,null,null,null,24,"Fv 891 Båtsfjordfjellet"," - ",75,44,75,61,69,30,50,41,31,63]
[null,null,null,null,null,null,null,null,null,null,null,null,null,null,null,null,null,null,null,null,null,null,null,null,null,null,null,null,null,null,null,null,null,null,25,"E75 Domen (Kiberg-Vardø)",1,13,0,6,6,0,0,4,8,2,29]
[null,null,null,null,null,null,null,null,null,null,null,null,null,null,null,null,null,null,null,null,null,null,null,null,null,null,null,null,null,null,null,null,null,null,26,"Fv 888 Nordkynvegen (Ifjord - Mehamn)"," - ",137,48,65,62,43,66,117,71,74,137]
[null,null,null,null,null,null,null,null,null,null,null,null,null,null,null,null,null,null,null,null,null,null,null,null,null,null,null,null,null,null,null,null,null,null,27,{"$f":"VLOOKUP($AI74,Hovedtabell,AJ$45,FALSE)","v":"Fv 98 Ifjordfjellet"}," - ",110,54,57,49,25,37,56,39,39,70]
[null,null,null,null,null,null,null,null,null,null,null,null,null,null,null,null,null,null,null,null,null,null,null,null,null,null,null,null,null,null,null,null,null,null,28,"Fv 890 Kongsfjordfjellet"," - ",75,44,73,57,53,18,29,27,23,61]
[null,null,null,null,null,null,null,null,null,null,null,null,null,null,null,null,null,null,null,null,null,null,null,null,null,null,null,null,null,null,null,null,null,null,29,"Fv 98 Børselvfjellet (Børselv - Kunes)"," - ",1,0,3,0,1,0,11,0,0,12]
[null,null,null,null,null,null,null,null,null,null,null,null,null,null,null,null,null,null,null,null,null,null,null,null,null,null,null,null,null,null,null,null,null,null,30,"Fv 813 Beiarfjellet (Misvær - Storjord)"," - ",17,8,2,13,16,6,19,6,10,35]

{"sheet":"Trend Midlertidig Stengt","index":1,"n_rows":34,"n_cols":19,"rows_kept":34,"cut":false,"hidden":false,"merged":[[5,1,6,2],[3,4,3,12]]}
[null,null,"Trend MS"]
[]
[]
[null,"Midlertidig stengt",null,null,"Finn nummeret til strekningen du ønsker i tabellen til høyre og skriv det i det gule feltet.",null,null,null,null,null,null,null,null,null,null,null,null,"Nr","Fjellovergang/strekning"]
[null,null,2,3,5,7,9,11,13,15,17,19,21,23,null,null,null,1,{"$f":"VLOOKUP(R5,Hovedtabell,2,FALSE)","v":"E6 Burfjord - Alta"}]
[null,"↓",null,"2009 / 2010","2010 / 2011","2011 / 2012","2012 / 2013","2013 / 2014","2014 / 2015","2015 / 2016","2016 / 2017","2017 / 2018","2018 / 2019","2019/2020",null,null,null,2,"E6 Hatter"]
[null,null,null,"MS","MS","MS","MS","MS","MS","MS","MS","MS","MS","MS",null,null,null,3,"E6 Kråkmofjellet"]
[null,23,{"$f":"VLOOKUP(B8,Hovedtabell,C5,FALSE)","v":"Fv 889 Smørfjord - Havøysund"},{"$f":"VLOOKUP($B$8,Hovedtabell,D5,FALSE)","v":" - "},34,12,37,31,34,36,53,37,{"$f":"VLOOKUP($B$8,Hovedtabell,M5,FALSE)","v":41},{"$f":"VLOOKUP($B$8,Hovedtabell,N5,FALSE)","v":68},null,null,null,4,"E6 Kvænangsfjellet"]
[null,null,"Snitt",{"$f":"AVERAGE($D$8:$N$8)","v":38.299999999999997},{"$f":"AVERAGE($D$8:$N$8)","v":38.299999999999997},38.299999999999997,38.299999999999997,38.299999999999997,38.299999999999997,38.299999999999997,38.299999999999997,38.299999999999997,38.299999999999997,38.299999999999997,null,null,null,5,"E6 Saltfjellet"]
[null,null,null,null,null,null,null,null,null,null,null,null,null,null,null,null,null,6,"E6 Sennalandet"]
[null,null,null,null,null,null,null,null,null,null,null,null,null,null,null,null,null,7,"E6 Ulvsvågskaret"]
[null,null,null,null,null,null,null,null,null,null,null,null,null,null,null,null,null,8,"E10 Bjørnfjell"]
[null,null,null,null,null,null,null,null,null,null,null,null,null,null,null,null,null,9,"E12 Umbukta"]
[null,null,null,null,null,null,null,null,null,null,null,null,null,null,null,null,null,10,"E69 Hønsa - Repvåg"]
[null,null,null,null,null,null,null,null,null,null,null,null,null,null,null,null,null,11,"E69 Nordkapptunnelen - Honningsvåg"]
[null,null,null,null,null,null,null,null,null,null,null,null,null,null,null,null,null,12,"E69 Olderfjord - Honningsvåg"]
[null,null,null,null,null,null,null,null,null,null,null,null,null,null,null,null,null,13,"E69 Olderfjord - Hønsa"]
[null,null,null,null,null,null,null,null,null,null,null,null,null,null,null,null,null,14,"E69 Repvåg - Nordkapptunnelen"]
[null,null,null,null,null,null,null,null,null,null,null,null,null,null,null,null,null,15,"E69 Skarsvåg - Nordkapp"]
[null,null,null,null,null,null,null,null,null,null,null,null,null,null,null,null,null,16,"E69 Skipsfjordhøgda - Skarsvåg"]
[null,null,null,null,null,null,null,null,null,null,null,null,null,null,null,null,null,17,"Rv 73 Krutfjellet"]
[null,null,null,null,null,null,null,null,null,null,null,null,null,null,null,null,null,18,"Rv 77 Graddis"]
[null,null,null,null,null,null,null,null,null,null,null,null,null,null,null,null,null,19,"Rv 92 Kautokeino - Karasjok"]
[null,null,null,null,null,null,null,null,null,null,null,null,null,null,null,null,null,20,"E45 Kautokeino - Alta"]
[null,null,null,null,null,null,null,null,null,null,null,null,null,null,null,null,null,21,"Rv 94 Kvalsund - Hammerfest"]
[null,null,null,null,null,null,null,null,null,null,null,null,null,null,null,null,null,22,"Fv 8038 Gjesværkrysset - Gjesvær"]
[null,null,null,null,null,null,null,null,null,null,null,null,null,null,null,null,null,23,"Fv 889 Smørfjord - Havøysund"]
[null,null,null,null,null,null,null,null,null,null,null,null,null,null,null,null,null,24,"Fv 891 Båtsfjordfjellet"]
[null,null,null,null,null,null,null,null,null,null,null,null,null,null,null,null,null,25,"E75 Domen (Kiberg-Vardø)"]
[null,null,null,null,null,null,null,null,null,null,null,"Gjennomsnitt (blå linje):",{"$f":"AVERAGE(D8:N8)","v":38.299999999999997},null,null,null,null,26,"Fv 888 Nordkynvegen (Ifjord - Mehamn)"]
[null,null,null,null,null,null,null,null,null,null,null,null,null,null,null,null,null,27,"Fv 98 Ifjordfjellet"]
[null,null,null,null,null,null,null,null,null,null,null,null,null,null,null,null,null,28,"Fv 890 Kongsfjordfjellet"]
[null,null,null,null,null,null,null,null,null,null,null,null,null,null,null,null,null,29,{"$f":"VLOOKUP(R33,Hovedtabell,2,FALSE)","v":"Fv 98 Børselvfjellet (Børselv - Kunes)"}]
[null,null,null,null,null,null,null,null,null,null,null,null,null,null,null,null,null,30,{"$f":"VLOOKUP(R34,Hovedtabell,2,FALSE)","v":"Fv 813 Beiarfjellet (Misvær - Storjord)"}]

{"sheet":"Trend Kolonnekjøring","index":2,"n_rows":34,"n_cols":19,"rows_kept":34,"cut":false,"hidden":false,"merged":[[5,1,6,2],[3,4,3,12]]}
[null,null,"Trend KK"]
[]
[]
[null,"Kolonnekjøring",null,null,"Finn nummeret til strekningen du ønsker i tabellen til høyre og skriv det i det gule feltet til venstre.",null,null,null,null,null,null,null,null,null,null,null,null,"Nr","Fjellovergang/strekning"]
[null,null,2,4,6,8,10,12,14,16,18,20,22,24,null,null,null,1,{"$f":"VLOOKUP(R5,Hovedtabell,2,FALSE)","v":"E6 Burfjord - Alta"}]
[null,"↓",null,"2009 / 2010","2010 / 2011","2011 / 2012","2012 / 2013","2013 / 2014","2014 / 2015","2015 / 2016","2016 / 2017","2017 / 2018","2018 / 2019","2019/2020",null,null,null,2,"E6 Hatter"]
[null,null,null,"KK","KK","KK","KK","KK","KK","KK","KK","KK","KK","KK",null,null,null,3,"E6 Kråkmofjellet"]
[null,5,{"$f":"VLOOKUP($B$8,Hovedtabell,C5,FALSE)","v":"E6 Saltfjellet"},6,28,30,7,38,31,17,44,11,17,{"$f":"VLOOKUP($B$8,Hovedtabell,N5,FALSE)","v":65},null,null,null,4,"E6 Kvænangsfjellet"]
[null,null,"Snitt",{"$f":"AVERAGE($D$8:$N$8)","v":26.727272727272727},{"$f":"AVERAGE($D$8:$N$8)","v":26.727272727272727},26.727272727272727,26.727272727272727,26.727272727272727,26.727272727272727,26.727272727272727,26.727272727272727,26.727272727272727,26.727272727272727,{"$f":"AVERAGE($D$8:$N$8)","v":26.727272727272727},null,null,null,5,"E6 Saltfjellet"]
[null,null,null,null,null,null,null,null,null,null,null,null,null,null,null,null,null,6,"E6 Sennalandet"]
[null,null,null,null,null,null,null,null,null,null,null,null,null,null,null,null,null,7,"E6 Ulvsvågskaret"]
[null,null,null,null,null,null,null,null,null,null,null,null,null,null,null,null,null,8,"E10 Bjørnfjell"]
[null,null,null,null,null,null,null,null,null,null,null,null,null,null,null,null,null,9,"E12 Umbukta"]
[null,null,null,null,null,null,null,null,null,null,null,null,null,null,null,null,null,10,"E69 Hønsa - Repvåg"]
[null,null,null,null,null,null,null,null,null,null,null,null,null,null,null,null,null,11,"E69 Nordkapptunnelen - Honningsvåg"]
[null,null,null,null,null,null,null,null,null,null,null,null,null,null,null,null,null,12,"E69 Olderfjord - Honningsvåg"]
[null,null,null,null,null,null,null,null,null,null,null,null,null,null,null,null,null,13,"E69 Olderfjord - Hønsa"]
[null,null,null,null,null,null,null,null,null,null,null,null,null,null,null,null,null,14,"E69 Repvåg - Nordkapptunnelen"]
[null,null,null,null,null,null,null,null,null,null,null,null,null,null,null,null,null,15,"E69 Skarsvåg - Nordkapp"]
[null,null,null,null,null,null,null,null,null,null,null,null,null,null,null,null,null,16,"E69 Skipsfjordhøgda - Skarsvåg"]
[null,null,null,null,null,null,null,null,null,null,null,null,null,null,null,null,null,17,"Rv 73 Krutfjellet"]
[null,null,null,null,null,null,null,null,null,null,null,null,null,null,null,null,null,18,"Rv 77 Graddis"]
[null,null,null,null,null,null,null,null,null,null,null,null,null,null,null,null,null,19,"Rv 92 Kautokeino - Karasjok"]
[null,null,null,null,null,null,null,null,null,null,null,null,null,null,null,null,null,20,"E45 Kautokeino - Alta"]
[null,null,null,null,null,null,null,null,null,null,null,null,null,null,null,null,null,21,"Rv 94 Kvalsund - Hammerfest"]
[null,null,null,null,null,null,null,null,null,null,null,null,null,null,null,null,null,22,"Fv 8038 Gjesværkrysset - Gjesvær"]
[null,null,null,null,null,null,null,null,null,null,null,null,null,null,null,null,null,23,"Fv 889 Smørfjord - Havøysund"]
[null,null,null,null,null,null,null,null,null,null,null,null,null,null,null,null,null,24,"Fv 891 Båtsfjordfjellet"]
[null,null,null,null,null,null,null,null,null,null,null,null,null,null,null,null,null,25,"E75 Domen (Kiberg-Vardø)"]
[null,null,null,null,null,null,null,null,null,null,null,"Gjennomsnitt (blå linje):",{"$f":"AVERAGE(D8:N8)","v":26.727272727272727},null,null,null,null,26,"Fv 888 Nordkynvegen (Ifjord - Mehamn)"]
[null,null,null,null,null,null,null,null,null,null,null,null,null,null,null,null,null,27,"Fv 98 Ifjordfjellet"]
[null,null,null,null,null,null,null,null,null,null,null,null,null,null,null,null,null,28,"Fv 890 Kongsfjordfjellet"]
[null,null,null,null,null,null,null,null,null,null,null,null,null,null,null,null,null,29,{"$f":"VLOOKUP(R33,Hovedtabell,2,FALSE)","v":"Fv 98 Børselvfjellet (Børselv - Kunes)"}]
[null,null,null,null,null,null,null,null,null,null,null,null,null,null,null,null,null,30,{"$f":"VLOOKUP(R34,Hovedtabell,2,FALSE)","v":"Fv 813 Beiarfjellet (Misvær - Storjord)"}]

{"sheet":"Søyle MS","index":3,"n_rows":34,"n_cols":19,"rows_kept":34,"cut":false,"hidden":false,"merged":[[3,4,3,12],[5,1,6,1],[3,1,3,3]]}
[null,null,"Søyle MS - Sammenligning"]
[]
[]
[null,"Midlertidig stengt - Sammenligning",null,null,"Finn numrene til strekningene du ønsker i tabellen til høyre og skriv dem i de gule feltene.",null,null,null,null,null,null,null,null,null,null,null,null,"Nr","Fjellovergang/strekning"]
[null,null,2,3,5,7,9,11,13,15,17,19,21,23,null,null,null,1,{"$f":"VLOOKUP(R5,Hovedtabell,2,FALSE)","v":"E6 Burfjord - Alta"}]
[null,"↓",null,"2009 / 2010","2010 / 2011","2011 / 2012","2012 / 2013","2013 / 2014","2014 / 2015","2015 / 2016","2016 / 2017","2017 / 2018","2018 / 2019","2019 / 2020",null,null,null,2,"E6 Hatter"]
[null,null,null,"MS","MS","MS","MS","MS","MS","MS","MS","MS","MS","MS",null,null,null,3,"E6 Kråkmofjellet"]
[null,11,{"$f":"VLOOKUP(B8,Hovedtabell,C5,FALSE)","v":"E69 Nordkapptunnelen - Honningsvåg"},{"$f":"VLOOKUP($B$8,Hovedtabell,D5,FALSE)","v":7},15,7,29,19,23,19,12,31,{"$f":"VLOOKUP($B$8,Hovedtabell,M5,FALSE)","v":17},{"$f":"VLOOKUP($B$8,Hovedtabell,N5,FALSE)","v":27},null,null,null,4,"E6 Kvænangsfjellet"]
[null,12,{"$f":"VLOOKUP(B9,Hovedtabell,C5,FALSE)","v":"E69 Olderfjord - Honningsvåg"},{"$f":"VLOOKUP($B$9,Hovedtabell,D5,FALSE)","v":44},73,22,91,63,62,81,72,107,62,95,null,null,null,5,"E6 Saltfjellet"]
[null,null,null,null,null,null,null,null,null,null,null,null,null,null,null,null,null,6,"E6 Sennalandet"]
[null,null,null,null,null,null,null,null,null,null,null,null,null,null,null,null,null,7,"E6 Ulvsvågskaret"]
[null,null,null,null,null,null,null,null,null,null,null,null,null,null,null,null,null,8,"E10 Bjørnfjell"]
[null,null,null,null,null,null,null,null,null,null,null,null,null,null,null,null,null,9,"E12 Umbukta"]
[null,null,null,null,null,null,null,null,null,null,null,null,null,null,null,null,null,10,"E69 Hønsa - Repvåg"]
[null,null,null,null,null,null,null,null,null,null,null,null,null,null,null,null,null,11,"E69 Nordkapptunnelen - Honningsvåg"]
[null,null,null,null,null,null,null,null,null,null,null,null,null,null,null,null,null,12,"E69 Olderfjord - Honningsvåg"]
[null,null,null,null,null,null,null,null,null,null,null,null,null,null,null,null,null,13,"E69 Olderfjord - Hønsa"]
[null,null,null,null,null,null,null,null,null,null,null,null,null,null,null,null,null,14,"E69 Repvåg - Nordkapptunnelen"]
[null,null,null,null,null,null,null,null,null,null,null,null,null,null,null,null,null,15,"E69 Skarsvåg - Nordkapp"]
[null,null,null,null,null,null,null,null,null,null,null,null,null,null,null,null,null,16,"E69 Skipsfjordhøgda - Skarsvåg"]
[null,null,null,null,null,null,null,null,null,null,null,null,null,null,null,null,null,17,"Rv 73 Krutfjellet"]
[null,null,null,null,null,null,null,null,null,null,null,null,null,null,null,null,null,18,"Rv 77 Graddis"]
[null,null,null,null,null,null,null,null,null,null,null,null,null,null,null,null,null,19,"Rv 92 Kautokeino - Karasjok"]
[null,null,null,null,null,null,null,null,null,null,null,null,null,null,null,null,null,20,"E45 Kautokeino - Alta"]
[null,null,null,null,null,null,null,null,null,null,null,null,null,null,null,null,null,21,"Rv 94 Kvalsund - Hammerfest"]
[null,null,null,null,null,null,null,null,null,null,null,null,null,null,null,null,null,22,"Fv 8038 Gjesværkrysset - Gjesvær"]
[null,null,null,null,null,null,null,null,null,null,null,null,null,null,null,null,null,23,"Fv 889 Smørfjord - Havøysund"]
[null,null,null,null,null,null,null,null,null,null,null,null,null,null,null,null,null,24,"Fv 891 Båtsfjordfjellet"]
[null,null,null,null,null,null,null,null,null,null,null,null,null,null,null,null,null,25,"E75 Domen (Kiberg-Vardø)"]
[null,null,null,null,null,null,null,null,null,null,null,null,null,null,null,null,null,26,"Fv 888 Nordkynvegen (Ifjord - Mehamn)"]
[null,null,null,null,null,null,null,null,null,null,null,null,null,null,null,null,null,27,"Fv 98 Ifjordfjellet"]
[null,null,null,null,null,null,null,null,null,null,null,null,null,null,null,null,null,28,"Fv 890 Kongsfjordfjellet"]
[null,null,null,null,null,null,null,null,null,null,null,null,null,null,null,null,null,29,"Fv 98 Børselvfjellet (Børselv - Kunes)"]
[null,null,null,null,null,null,null,null,null,null,null,null,null,null,null,null,null,30,{"$f":"VLOOKUP(R34,Hovedtabell,2,FALSE)","v":"Fv 813 Beiarfjellet (Misvær - Storjord)"}]

{"sheet":"Søyle KK","index":4,"n_rows":34,"n_cols":19,"rows_kept":34,"cut":false,"hidden":false,"merged":[[3,1,3,3],[3,4,3,12],[5,1,6,1]]}
[null,null,"Søyle KK - Sammenligning"]
[]
[]
[null,"Kolonnekjøring - Sammenligning",null,null,"Finn numrene til strekningene du ønsker i tabellen til høyre og skriv dem i de gule feltene.",null,null,null,null,null,null,null,null,null,null,null,null,"Nr","Fjellovergang/strekning"]
[null,null,2,4,6,8,10,12,14,16,18,20,22,24,null,null,null,1,{"$f":"VLOOKUP(R5,Hovedtabell,2,FALSE)","v":"E6 Burfjord - Alta"}]
[null,"↓",null,"2009 / 2010","2010 / 2011","2011 / 2012","2012 / 2013","2013 / 2014","2014 / 2015","2015 / 2016","2016 / 2017","2017 / 2018","2018 / 2019","2019 / 2020",null,null,null,2,"E6 Hatter"]
[null,null,null,"KK","KK","KK","KK","KK","KK","KK","KK","KK","KK","KK",null,null,null,3,"E6 Kråkmofjellet"]
[null,5,{"$f":"VLOOKUP(B8,Hovedtabell,C5,FALSE)","v":"E6 Saltfjellet"},{"$f":"VLOOKUP($B$8,Hovedtabell,D5,FALSE)","v":6},28,30,7,38,31,17,44,11,{"$f":"VLOOKUP($B$8,Hovedtabell,M5,FALSE)","v":17},{"$f":"VLOOKUP($B$8,Hovedtabell,N5,FALSE)","v":65},null,null,null,4,"E6 Kvænangsfjellet"]
[null,30,{"$f":"VLOOKUP(B9,Hovedtabell,C5,FALSE)","v":"Fv 813 Beiarfjellet (Misvær - Storjord)"},{"$f":"VLOOKUP($B$9,Hovedtabell,D5,FALSE)","v":" - "},17,8,2,13,16,6,19,6,10,35,null,null,null,5,"E6 Saltfjellet"]
[null,null,null,null,null,null,null,null,null,null,null,null,null,null,null,null,null,6,"E6 Sennalandet"]
[null,null,null,null,null,null,null,null,null,null,null,null,null,null,null,null,null,7,"E6 Ulvsvågskaret"]
[null,null,null,null,null,null,null,null,null,null,null,null,null,null,null,null,null,8,"E10 Bjørnfjell"]
[null,null,null,null,null,null,null,null,null,null,null,null,null,null,null,null,null,9,"E12 Umbukta"]
[null,null,null,null,null,null,null,null,null,null,null,null,null,null,null,null,null,10,"E69 Hønsa - Repvåg"]
[null,null,null,null,null,null,null,null,null,null,null,null,null,null,null,null,null,11,"E69 Nordkapptunnelen - Honningsvåg"]
[null,null,null,null,null,null,null,null,null,null,null,null,null,null,null,null,null,12,"E69 Olderfjord - Honningsvåg"]
[null,null,null,null,null,null,null,null,null,null,null,null,null,null,null,null,null,13,"E69 Olderfjord - Hønsa"]
[null,null,null,null,null,null,null,null,null,null,null,null,null,null,null,null,null,14,"E69 Repvåg - Nordkapptunnelen"]
[null,null,null,null,null,null,null,null,null,null,null,null,null,null,null,null,null,15,"E69 Skarsvåg - Nordkapp"]
[null,null,null,null,null,null,null,null,null,null,null,null,null,null,null,null,null,16,"E69 Skipsfjordhøgda - Skarsvåg"]
[null,null,null,null,null,null,null,null,null,null,null,null,null,null,null,null,null,17,"Rv 73 Krutfjellet"]
[null,null,null,null,null,null,null,null,null,null,null,null,null,null,null,null,null,18,"Rv 77 Graddis"]
[null,null,null,null,null,null,null,null,null,null,null,null,null,null,null,null,null,19,"Rv 92 Kautokeino - Karasjok"]
[null,null,null,null,null,null,null,null,null,null,null,null,null,null,null,null,null,20,"E45 Kautokeino - Alta"]
[null,null,null,null,null,null,null,null,null,null,null,null,null,null,null,null,null,21,"Rv 94 Kvalsund - Hammerfest"]
[null,null,null,null,null,null,null,null,null,null,null,null,null,null,null,null,null,22,"Fv 8038 Gjesværkrysset - Gjesvær"]
[null,null,null,null,null,null,null,null,null,null,null,null,null,null,null,null,null,23,"Fv 889 Smørfjord - Havøysund"]
[null,null,null,null,null,null,null,null,null,null,null,null,null,null,null,null,null,24,"Fv 891 Båtsfjordfjellet"]
[null,null,null,null,null,null,null,null,null,null,null,null,null,null,null,null,null,25,"E75 Domen (Kiberg-Vardø)"]
[null,null,null,null,null,null,null,null,null,null,null,null,null,null,null,null,null,26,"Fv 888 Nordkynvegen (Ifjord - Mehamn)"]
[null,null,null,null,null,null,null,null,null,null,null,null,null,null,null,null,null,27,"Fv 98 Ifjordfjellet"]
[null,null,null,null,null,null,null,null,null,null,null,null,null,null,null,null,null,28,"Fv 890 Kongsfjordfjellet"]
[null,null,null,null,null,null,null,null,null,null,null,null,null,null,null,null,null,29,"Fv 98 Børselvfjellet (Børselv - Kunes)"]
[null,null,null,null,null,null,null,null,null,null,null,null,null,null,null,null,null,30,{"$f":"VLOOKUP(R34,Hovedtabell,2,FALSE)","v":"Fv 813 Beiarfjellet (Misvær - Storjord)"}]

{"sheet":"Søyle MS alle","index":5,"n_rows":0,"n_cols":0,"rows_kept":0,"cut":false,"hidden":false,"merged":[]}

{"sheet":"Søyle KK alle","index":6,"n_rows":0,"n_cols":0,"rows_kept":0,"cut":false,"hidden":false,"merged":[]}